bitfinex-derivatives/quotes_ETHF0:USTF0_20260305
["timestamp","ask_amount","ask_price","bid_price","bid_amount"]
[1772737088677,0.81929608,2077.2,2076.8,0.57102311]
[1772737089078,0.57862608,2077.1,2076.8,0.57102311]
[1772737089278,0.81929608,2077.2,2076.8,0.57102311]
[1772737089578,0.57862608,2077.1,2076.8,0.57102311]
[1772737089776,0.81933608,2076.8,2076.5,6.54682228]
[1772737090072,5.92057,2077.2,2076.1,0.57102311]
[1772737090073,0.57862608,2076.7,2076.1,0.57102311]
[1772737090278,0.57862608,2077.1,2076.4,0.57102311]
[1772737090479,0.57862608,2077.1,2076.5,0.57102311]
[1772737091073,0.57862608,2077.1,2076.5,0.57447578]
[1772737091277,0.57862608,2076.8,2076.5,0.57447578]
[1772737091681,0.57862608,2076.8,2076.5,0.00345267]
[1772737091975,0.57862608,2076.8,2076.5,0.57447578]
[1772737092183,0.57862608,2077.6,2076.7,0.57102311]
[1772737093283,0.57862608,2077.2,2076.7,0.57102311]
[1772737093577,0.81930608,2077.1,2076.7,0.57102311]
[1772737093782,0.57862608,2077.0,2076.7,0.57102311]
[1772737094181,0.81932608,2076.9,2076.5,0.57447578]
[1772737094480,0.2407,2076.9,2076.6,0.57102311]
[1772737094682,0.81932608,2076.9,2076.6,0.57102311]
[1772737095181,0.2407,2076.9,2076.6,0.57102311]
[1772737095380,5.91972,2077.5,2076.6,0.57102311]
[1772737095381,0.57862608,2077.1,2076.6,0.57102311]
[1772737096183,0.2407,2076.9,2076.6,0.57102311]
[1772737097679,0.57862608,2076.8,2076.5,22.04825906]
[1772737097982,0.81932608,2076.9,2076.5,21.43625906]
[1772737098178,0.81932608,2076.9,2076.6,0.57102311]
[1772737098580,0.2407,2076.9,2076.6,0.57102311]
[1772737098877,0.2407,2076.9,2076.6,0.57696403]
[1772737099179,0.81932608,2076.9,2076.6,0.00594092]
[1772737100385,0.57862608,2076.8,2076.3,0.57102311]
[1772737101486,0.57862608,2076.8,2076.3,0.5768133]
[1772737104188,0.81932608,2076.9,2076.4,0.57102311]
[1772737104487,0.57862608,2076.8,2076.4,0.57102311]
[1772737104885,0.81932608,2076.9,2076.4,0.57102311]
[1772737106987,0.57862608,2076.6,2076.3,0.00579019]
[1772737107285,0.57862608,2076.6,2076.2,0.57102311]
[1772737108091,0.57862608,2076.6,2076.2,0.57472132]
[1772737108286,0.80838912,2076.7,2076.3,0.55346344]
[1772737109993,0.56765912,2076.6,2076.3,0.55346344]
[1772737110291,0.80141131,2076.5,2076.2,22.228]
[1772737110497,0.56066131,2076.4,2076.0,22.23]
[1772737111091,0.56066131,2076.4,2076.0,22.81740867]
[1772737111596,0.56680534,2076.4,2076.0,22.82219909]
[1772737111895,0.56680534,2076.4,2076.1,0.58740867]
[1772737112097,0.80141131,2076.5,2076.1,0.58740867]
[1772737112294,0.24075,2076.5,2076.1,0.58740867]
[1772737112491,0.80141131,2076.5,2076.1,0.58740867]
[1772737112989,0.56066131,2076.5,2076.1,0.58740867]
[1772737113293,0.56534526,2076.5,2076.1,0.58740867]
[1772737118594,0.56066131,2076.3,2076.0,0.59219909]
[1772737118999,0.24076,2076.4,2076.0,0.59219909]
[1772737119700,0.80138131,2076.8,2076.0,0.59219909]
[1772737119901,0.56066131,2076.7,2076.2,3.64407047]
[1772737120099,0.56066131,2076.7,2076.3,22.91540867]
[1772737120295,0.56066131,2076.7,2076.4,0.58740867]
[1772737120598,0.0329923,2077.0,2076.4,0.58740867]
[1772737120800,0.00497101,2077.0,2076.6,0.58740867]
[1772737121102,0.03796331,2077.0,2076.6,0.58740867]
[1772737121295,0.00497101,2077.0,2076.6,0.58740867]
[1772737121801,0.24068,2077.1,2076.6,0.58740867]
[1772737122702,0.24450246,2077.1,2076.6,0.58740867]
[1772737124798,0.02961358,2077.0,2076.6,0.58740867]
[1772737125798,0.02961358,2076.8,2076.4,0.58740867]
[1772737126005,0.00382246,2077.1,2076.3,0.58740867]
[1772737126006,0.27034358,2076.7,2076.3,0.58740867]
[1772737126200,0.76817358,2076.3,2076.0,0.00479042]
[1772737126405,0.56066131,2077.0,2076.1,0.58740867]
[1772737126596,0.56066131,2077.0,2076.0,0.58740867]
[1772737127401,0.56066131,2077.0,2076.0,0.59333572]
[1772737128204,0.56066131,2076.8,2076.0,0.59333572]
[1772737129500,0.56066131,2076.2,2075.6,6.59007161]
[1772737129702,0.56066131,2076.0,2075.5,0.58740867]
[1772737130507,0.80146131,2076.1,2075.6,0.58740867]
[1772737130910,0.2408,2076.1,2075.6,0.58740867]
[1772737131510,0.56066131,2076.3,2075.7,0.58740867]
[1772737132211,0.2408,2076.1,2075.7,0.58740867]
[1772737132511,0.56066131,2076.0,2075.7,0.58740867]
[1772737132707,0.80146131,2076.1,2075.7,0.58740867]
[1772737133608,0.24082,2075.9,2075.7,0.58740867]
[1772737133813,0.80148131,2075.9,2075.5,0.59233846]
[1772737134112,0.56066131,2075.8,2075.5,0.59233846]
[1772737135111,0.56066131,2076.3,2075.5,0.59233846]
[1772737135416,0.56066131,2076.1,2075.5,0.59233846]
[1772737135614,0.56066131,2075.9,2075.5,0.00492979]
[1772737135806,0.56066131,2075.9,2075.2,22.415]
[1772737136010,0.56066131,2075.9,2075.2,23.00240867]
[1772737136618,0.56066131,2075.7,2075.2,0.58740867]
[1772737136810,0.56066131,2075.7,2075.0,0.58740867]
[1772737137016,0.56066131,2075.7,2075.2,0.005407]
[1772737137712,0.56066131,2075.7,2075.2,0.59281567]
[1772737138916,0.56066131,2075.7,2074.9,0.58740867]
[1772737140015,0.56066131,2075.7,2074.9,0.59315608]
[1772737142919,0.24083,2075.8,2074.9,0.59315608]
[1772737142920,0.82435571,2075.8,2074.9,0.59315608]
[1772737143725,0.58352571,2075.7,2074.9,0.59315608]
[1772737145126,0.82435571,2075.8,2075.0,0.5897719]
[1772737145627,0.58352571,2075.7,2075.0,0.5897719]
[1772737146025,0.58352571,2075.5,2075.0,0.5897719]
[1772737146327,0.58352571,2075.1,2074.6,0.5897719]
[1772737146528,0.58352571,2074.9,2074.6,0.5897719]
[1772737147020,0.58352571,2075.4,2074.6,0.5897719]
[1772737147425,0.58352571,2075.4,2074.6,0.59483747]
[1772737151640,0.58704034,2075.5,2074.6,0.59483747]
[1772737151933,0.00351463,2075.5,2074.7,0.5897719]
[1772737152139,0.58352571,2075.9,2075.1,0.5897719]
[1772737152438,0.58352571,2075.9,2075.3,0.5897719]
[1772737153238,0.58819529,2075.9,2075.3,0.5897719]
[1772737154339,0.58819529,2075.9,2075.3,23.1037719]
[1772737154734,0.58819529,2075.9,2075.4,0.5897719]
[1772737162243,0.00466958,2075.9,2075.4,0.5897719]
[1772737162547,0.58352571,2076.1,2075.5,0.5897719]
[1772737162748,0.58352571,2076.1,2075.4,6.00266294]
[1772737163148,0.58352571,2076.1,2075.4,0.5897719]
[1772737163448,0.58816147,2076.1,2075.4,0.5897719]
[1772737163649,0.58816147,2076.1,2075.5,0.5897719]
[1772737164351,0.58816147,2076.1,2075.4,23.1467719]
[1772737165645,0.58816147,2076.1,2075.5,0.5897719]
[1772737168350,0.59093464,2076.3,2075.6,0.58226513]
[1772737168546,0.59093464,2076.3,2075.8,0.58226513]
[1772737168847,0.59093464,2076.8,2076.0,0.58226513]
[1772737169542,0.59093464,2076.6,2076.0,0.58226513]
[1772737169738,0.5949757,2076.6,2076.0,0.58226513]
[1772737169941,0.59093464,2076.4,2076.0,0.58226513]
[1772737170449,0.78905289,2076.5,2076.0,0.58226513]
[1772737170848,0.54830289,2076.4,2076.0,0.58226513]
[1772737172354,0.24075,2076.5,2076.0,0.58226513]
[1772737173049,0.78905289,2076.5,2076.0,0.58226513]
[1772737173949,0.00404106,2076.6,2076.0,0.58226513]
[1772737175748,0.55234395,2076.6,2076.1,0.59796307]
[1772737175955,0.54830289,2076.4,2076.1,0.00452686]
[1772737176153,0.00404106,2076.6,2075.9,23.20796307]
[1772737176154,0.54830289,2076.2,2075.9,23.20796307]
[1772737177052,0.54830289,2077.0,2076.0,0.59796307]
[1772737177249,0.54830289,2077.0,2076.2,0.59796307]
[1772737177450,0.54830289,2077.0,2076.3,0.59796307]
[1772737178161,0.55280092,2077.0,2076.3,0.60272486]
[1772737184362,0.54830289,2076.8,2076.3,0.60272486]
[1772737189164,0.2407,2076.9,2076.3,0.60272486]
[1772737189864,0.00449803,2077.0,2076.5,0.59796307]
[1772737190068,0.54830289,2077.2,2076.5,0.59796307]
[1772737191069,0.55184098,2077.2,2076.5,0.59796307]
[1772737191674,0.54830289,2077.0,2076.5,0.59796307]
[1772737192376,0.54830289,2076.8,2076.4,0.59796307]
[1772737193172,0.54830289,2076.9,2076.4,0.59796307]
[1772737195380,0.54830289,2076.8,2076.3,0.60272486]
[1772737196267,0.24071,2076.9,2076.3,0.60272486]
[1772737196880,0.00353809,2077.2,2076.5,0.59796307]
[1772737197175,0.54830289,2077.1,2076.5,0.59796307]
[1772737200285,0.57877148,2076.9,2076.4,0.55888195]
[1772737200486,0.57877148,2076.9,2076.7,1.28780387]
[1772737200682,0.00353809,2077.2,2076.8,2.6484481]
[1772737200986,0.24065,2077.4,2077.0,2.03990585]
[1772737201881,0.24578784,2077.4,2077.0,2.03990585]
[1772737202083,4.0267979,2077.9,2077.2,2.03990585]
[1772737202282,0.2406,2077.8,2077.4,2.03990585]
[1772737202484,0.2406,2077.8,2077.3,0.61056468]
[1772737203189,0.24529234,2077.8,2077.3,0.61056468]
[1772737203779,0.24529234,2077.8,2077.1,0.61056468]
[1772737204484,0.24065,2077.4,2077.1,0.61056468]
[1772737205083,0.24065,2077.4,2076.7,28.70139065]
[1772737205287,0.24069,2077.0,2076.7,0.60703493]
[1772737205485,0.24069,2077.0,2076.4,6.00539065]
[1772737205689,0.22319115,2077.2,2076.4,0.60703493]
[1772737206296,0.24074,2076.6,2076.4,0.60703493]
[1772737206492,0.22319115,2076.9,2076.4,0.60703493]
[1772737206682,0.24074,2076.6,2076.4,0.60703493]
[1772737206886,0.20589392,2077.2,2076.5,0.55888195]
[1772737207490,0.44657392,2077.1,2076.5,0.55888195]
[1772737208390,0.44659392,2076.9,2076.5,0.55888195]
[1772737208590,0.2407,2076.9,2076.5,0.55888195]
[1772737208991,0.44850536,2076.7,2076.4,0.55888195]
[1772737209188,0.44850536,2076.7,2076.3,0.00476179]
[1772737209393,0.44850536,2076.7,2076.3,0.56364374]
[1772737209688,0.44850536,2076.7,2076.2,0.50862082]
[1772737209689,0.24075,2076.5,2076.2,0.50862082]
[1772737209893,0.57877148,2076.8,2076.2,0.50862082]
[1772737210489,0.57877148,2076.8,2076.2,0.51414909]
[1772737211089,0.81949148,2076.8,2076.2,0.51414909]
[1772737211494,0.24074,2076.6,2076.2,0.51414909]
[1772737212190,0.19912991,2076.6,2076.2,0.51414909]
[1772737212395,0.57877148,2076.9,2076.2,0.51414909]
[1772737212695,0.57877148,2076.9,2076.3,0.29832781]
[1772737213594,0.24069,2077.1,2076.5,0.29832781]
[1772737213795,0.24069,2077.1,2076.8,0.29832781]
[1772737213992,0.57877148,2077.3,2076.8,0.29832781]
[1772737214891,0.57877148,2077.5,2076.8,0.29832781]
[1772737215192,0.00469234,2077.8,2077.4,0.30931558]
[1772737215393,0.58346382,2077.8,2077.4,0.30931558]
[1772737215994,0.00469234,2077.8,2077.4,0.30931558]
[1772737216195,0.58346382,2077.8,2077.4,0.30931558]
[1772737219899,0.58346382,2077.8,2077.0,28.72853446]
[1772737220399,0.58346382,2077.8,2077.0,22.722]
[1772737221199,0.60292498,2077.8,2077.3,3.05673859]
[1772737221590,0.60292498,2077.8,2077.0,25.77873859]
[1772737221895,0.60292498,2077.8,2076.8,28.72953446]
[1772737222095,0.60292498,2077.8,2076.9,3.05673859]
[1772737223596,0.00469234,2077.8,2077.2,3.05673859]
[1772737223795,0.60650553,2077.8,2077.2,3.05673859]
[1772737224800,0.24057,2078.1,2077.3,22.73]
[1772737225001,0.60154609,2078.2,2077.5,3.05673859]
[1772737225200,0.24051,2078.6,2077.5,3.05673859]
[1772737225497,0.24053,2078.4,2077.5,3.05673859]
[1772737225703,0.60154609,2078.3,2077.5,3.05673859]
[1772737225898,0.60629383,2078.3,2077.5,3.05673859]
[1772737226298,0.00474774,2078.3,2077.5,3.05673859]
[1772737226505,0.84207609,2078.4,2077.5,3.05673859]
[1772737227500,0.8457905,2078.4,2077.5,3.05673859]
[1772737227702,0.24048,2078.9,2077.8,3.05673859]
[1772737228004,0.60227262,2078.8,2078.1,3.05673859]
[1772737228203,0.60227262,2078.8,2078.1,25.69573859]
[1772737228600,0.60344244,2078.6,2077.7,22.645]
[1772737228800,0.60968307,2078.6,2077.7,22.65081332]
[1772737229203,0.60968307,2078.6,2077.7,63.45081332]
[1772737229504,0.60968307,2078.6,2077.7,63.45981332]
[1772737229802,0.60968307,2078.6,2077.7,25.71655191]
[1772737230003,0.00624063,2078.6,2078.0,3.05673859]
[1772737231302,0.60923022,2078.6,2077.8,40.8]
[1772737231611,0.60298959,2078.2,2077.5,22.674]
[1772737232804,0.60298959,2078.2,2077.5,22.67912814]
[1772737233199,0.60642069,2078.5,2077.7,3.05673859]
[1772737234411,0.60642069,2078.3,2077.5,22.67912814]
[1772737234603,0.60642069,2078.3,2077.6,0.01324195]
[1772737234804,0.24053,2078.4,2077.6,0.01324195]
[1772737235109,0.24053,2078.4,2077.8,0.01324195]
[1772737235504,0.83197206,2078.4,2077.8,0.01324195]
[1772737235907,0.59144206,2078.3,2077.8,0.01324195]
[1772737236105,0.59144206,2078.3,2077.6,22.72824195]
[1772737236411,0.59144206,2078.3,2077.7,0.01324195]
[1772737236600,0.59772878,2078.1,2077.5,0.00512814]
[1772737237005,0.59772878,2078.1,2077.5,22.72612814]
[1772737237508,0.24055,2078.2,2077.5,22.72612814]
[1772737238109,0.83827878,2078.2,2077.5,22.72612814]
[1772737238305,0.59772878,2078.1,2077.5,22.72612814]
[1772737239410,0.59789152,2077.9,2077.5,22.72612814]
[1772737240107,0.59789152,2077.9,2077.5,0.00512814]
[1772737241501,0.59909507,2078.4,2077.5,0.00512814]
[1772737242403,0.6053357,2078.6,2077.8,0.0112281]
[1772737242607,0.59244899,2079.0,2078.1,0.0112281]
[1772737243006,0.83290899,2079.0,2078.1,0.0112281]
[1772737243311,0.59244899,2078.9,2078.1,0.0112281]
[1772737243811,0.24048,2078.8,2077.8,6.01776256]
[1772737244006,0.59817365,2078.9,2077.8,0.0112281]
[1772737244007,0.59244899,2078.5,2077.8,0.0112281]
[1772737244212,0.59244899,2078.5,2077.7,22.7972281]
[1772737244409,0.59244899,2078.5,2077.8,0.0112281]
[1772737245010,0.59244899,2078.5,2077.9,0.01000916]
[1772737245210,0.59305846,2078.8,2077.9,0.01000916]
[1772737245414,0.59305846,2078.8,2078.1,0.01000916]
[1772737246423,0.59878312,2078.9,2078.4,0.01000916]
[1772737246611,0.00572466,2078.9,2078.4,0.01000916]
[1772737247618,0.59398561,2079.1,2078.4,0.01000916]
[1772737248616,0.59747099,2079.1,2078.4,0.01000916]
[1772737249314,0.00348538,2079.1,2078.4,0.01000916]
[1772737249710,0.00348538,2079.1,2078.4,40.81000916]
[1772737249912,0.00348538,2079.1,2078.5,0.00912056]
[1772737250815,0.00348538,2079.1,2078.5,22.82912056]
[1772737250816,0.59308623,2079.1,2078.5,22.82912056]
[1772737251121,0.59308623,2079.1,2078.6,0.01981411]
[1772737251620,0.58960085,2079.3,2078.6,0.01981411]
[1772737252618,0.5952311,2079.3,2078.7,22.84975752]
[1772737252817,0.5952311,2079.3,2078.8,0.02075752]
[1772737253418,0.58960085,2080.0,2078.8,0.02075752]
[1772737254113,0.24034,2080.1,2078.8,0.02075752]
[1772737254114,0.58960085,2079.6,2078.8,0.02075752]
[1772737254525,0.59357418,2079.6,2078.8,0.02075752]
[1772737255120,0.58960085,2079.4,2078.7,22.86140592]
[1772737256922,0.58960085,2079.4,2078.8,0.0261614]
[1772737257121,0.59357418,2079.6,2078.8,0.0261614]
[1772737257920,0.58960085,2079.5,2078.8,0.0261614]
[1772737260924,0.58960085,2079.5,2078.9,22.88]
[1772737261125,0.00397333,2079.6,2079.0,0.04038619]
[1772737261423,0.00397333,2079.6,2079.0,0.04640676]
[1772737261621,0.60034413,2079.6,2079.0,0.04640676]
[1772737261825,0.5963708,2079.8,2079.0,0.04640676]
[1772737262027,0.5963708,2080.2,2079.0,0.04640676]
[1772737262225,0.5963708,2080.2,2079.2,0.04038619]
[1772737262424,0.5963708,2081.5,2079.9,0.04038619]
[1772737262729,0.5963708,2081.5,2079.6,11.92007446]
[1772737262730,0.5963708,2081.1,2080.4,0.02384297]
[1772737262917,0.60257146,2081.1,2080.6,0.02384297]
[1772737263122,0.5963708,2081.5,2080.6,0.02751417]
[1772737263320,0.5963708,2081.5,2080.6,0.0036712]
[1772737263628,0.5963708,2080.7,2079.8,0.02384297]
[1772737264324,0.5963708,2080.7,2080.0,0.02384297]
[1772737264624,0.60081461,2080.7,2080.0,0.00463059]
[1772737266428,0.60081461,2080.7,2079.7,22.742]
[1772737266627,0.60081461,2080.7,2079.3,0.02131679]
[1772737267537,0.5963708,2080.5,2079.3,0.0048183]
[1772737267732,0.24032,2080.2,2078.9,0.02131679]
[1772737267927,0.5963708,2080.1,2078.7,0.02613509]
[1772737268737,0.5963708,2080.1,2078.7,0.03093512]
[1772737269138,0.5963708,2079.9,2078.7,0.03093512]
[1772737270338,0.5963708,2079.9,2078.9,0.03719301]
[1772737272044,0.5963708,2079.9,2079.3,0.0348509]
[1772737272243,0.5963708,2080.4,2079.3,0.0348509]
[1772737273543,0.5963708,2080.6,2079.5,3.05306388]
[1772737273738,0.5963708,2080.6,2079.6,0.03714577]
[1772737274945,0.5963708,2080.6,2079.7,40.8]
[1772737275147,0.5963708,2080.6,2079.8,0.04028868]
[1772737276245,0.5963708,2080.2,2079.7,40.8]
[1772737276448,0.5963708,2080.2,2079.5,22.292]
[1772737276648,0.5963708,2080.2,2079.4,0.04028868]
[1772737276948,0.5963708,2080.2,2079.5,40.8]
[1772737277348,0.5963708,2080.2,2079.4,0.04028868]
[1772737277849,0.5963708,2080.2,2079.4,40.84028868]
[1772737278148,0.5963708,2080.2,2079.1,22.33777585]
[1772737278351,0.5963708,2080.2,2079.2,0.03277585]
[1772737278848,0.5963708,2080.2,2079.1,63.105]
[1772737279049,0.5963708,2080.2,2079.1,63.13873115]
[1772737279240,0.5963708,2080.2,2079.2,0.03373115]
[1772737280149,0.5963708,2080.2,2079.1,63.105]
[1772737280344,0.5963708,2080.2,2079.2,0.03373115]
[1772737282351,0.5963708,2080.2,2079.3,0.03336332]
[1772737283349,6.411,2080.6,2079.3,0.03336332]
[1772737283545,0.5963708,2080.5,2079.3,0.03336332]
[1772737283742,0.5963708,2080.5,2079.4,0.55115811]
[1772737284144,0.5963708,2080.5,2079.6,0.55115811]
[1772737284953,0.5963708,2080.5,2079.4,0.55115811]
[1772737285552,0.5963708,2080.6,2079.6,0.55115811]
[1772737286355,6.411,2081.0,2079.8,0.55115811]
[1772737286755,10.68354028,2081.4,2079.8,0.55115811]
[1772737287454,10.6884665,2081.4,2079.8,0.55115811]
[1772737287655,0.24024,2081.0,2079.8,0.55115811]
[1772737287851,0.24024,2081.0,2079.7,22.692]
[1772737288251,0.24024,2081.0,2079.7,23.29022356]
[1772737288453,0.24024,2081.0,2079.7,0.59822356]
[1772737290652,6.53924,2081.0,2079.7,0.59822356]
[1772737290849,0.24024,2081.0,2079.9,0.60464153]
[1772737291555,6.411,2081.2,2079.9,0.60464153]
[1772737291853,6.411,2081.2,2080.1,0.60464153]
[1772737292057,6.411,2081.2,2080.2,0.60464153]
[1772737292258,6.411,2081.2,2080.2,0.60820221]
[1772737293459,0.24022,2081.1,2080.2,0.60820221]
[1772737294459,0.24022,2081.1,2080.2,0.00356068]
[1772737295159,0.24026,2080.8,2080.2,0.60229495]
[1772737295359,0.24026,2080.8,2080.0,0.59873427]
[1772737295559,0.2403,2080.5,2079.8,0.59873427]
[1772737295857,0.24034,2080.1,2079.4,0.59873427]
[1772737296252,0.24034,2080.1,2079.4,0.60295037]
[1772737297358,0.24038,2079.7,2079.4,0.0042161]
[1772737297657,0.74215757,2079.3,2078.9,0.56167421]
[1772737297856,0.50173757,2079.5,2078.9,0.56167421]
[1772737298455,0.50173757,2079.5,2078.9,0.56530612]
[1772737298662,0.5056776,2079.5,2078.9,0.56530612]
[1772737298858,0.74186364,2079.1,2078.5,0.56167421]
[1772737299256,0.50141364,2079.0,2078.5,0.56167421]
[1772737299453,0.74188364,2078.9,2078.3,22.885]
[1772737299654,0.50141364,2078.6,2077.9,22.891]
[1772737299855,0.74193364,2078.5,2078.0,0.56167421]
[1772737300058,0.24052,2078.5,2078.0,0.56167421]
[1772737300256,0.50141364,2079.4,2078.0,0.56167421]
[1772737300461,0.24046,2079.0,2078.1,0.56167421]
[1772737300663,0.50141364,2079.2,2078.1,0.56167421]
[1772737300860,0.24046,2079.0,2078.1,0.56167421]
[1772737301063,0.45692488,2078.7,2078.1,0.56167421]
[1772737301258,0.24048,2078.8,2078.1,0.56167421]
[1772737301466,0.45692488,2079.1,2078.1,0.56167421]
[1772737301661,0.24046,2079.0,2078.1,0.56167421]
[1772737301866,0.45692488,2078.9,2078.1,0.56167421]
[1772737302069,0.45692488,2078.7,2078.1,0.56167421]
[1772737302768,0.24048,2078.8,2078.1,0.56167421]
[1772737303158,0.43399956,2078.9,2078.1,0.56167421]
[1772737303468,0.43399956,2079.2,2078.1,0.56167421]
[1772737303762,0.43399956,2079.2,2078.3,0.56167421]
[1772737308973,0.43399956,2079.2,2078.1,0.56167421]
[1772737310476,0.43399956,2079.2,2078.3,0.56167421]
[1772737310671,0.43399956,2079.2,2078.4,0.56167421]
[1772737313871,0.43399956,2079.2,2078.6,0.56167421]
[1772737314076,0.42187545,2079.4,2078.6,0.56167421]
[1772737314775,0.00394003,2079.5,2078.6,0.56167421]
[1772737316478,0.41763679,2079.5,2078.6,0.56167421]
[1772737319285,6.411,2079.9,2078.6,0.56167421]
[1772737319484,5.90875,2081.4,2078.3,23.047]
[1772737319485,0.59781113,2081.0,2079.8,3.05357499]
[1772737319778,0.59781113,2081.6,2079.9,25.98057499]
[1772737319979,0.59781113,2081.6,2080.0,43.85357499]
[1772737320484,0.59781113,2081.2,2080.2,0.00246397]
[1772737320785,0.59781113,2081.2,2080.3,22.883]
[1772737321087,0.59781113,2081.2,2080.3,0.00246397]
[1772737321281,0.59692031,2081.0,2080.3,0.00246397]
[1772737321889,0.59692031,2080.9,2080.3,0.00246397]
[1772737322687,0.59692031,2080.9,2080.4,22.928]
[1772737322890,0.59692031,2080.9,2080.5,22.936]
[1772737323087,0.59692031,2080.9,2080.0,40.81207848]
[1772737323385,0.24021,2081.2,2080.0,40.81207848]
[1772737323386,0.59383559,2080.7,2080.1,0.00863342]
[1772737323582,0.00382237,2081.6,2080.3,0.00863342]
[1772737323583,0.59383559,2081.5,2080.3,0.00863342]
[1772737323781,0.59383559,2081.3,2080.3,0.00863342]
[1772737324188,0.59383559,2081.1,2080.3,0.00863342]
[1772737324589,0.54487499,2081.5,2080.6,0.59783061]
[1772737324789,0.54487499,2081.5,2080.7,0.59783061]
[1772737324990,0.54487499,2081.5,2080.6,22.96]
[1772737324991,0.54869736,2081.6,2080.9,0.59783061]
[1772737325199,0.54487499,2082.7,2081.0,0.24023]
[1772737325399,0.54487499,2082.4,2081.2,0.59783061]
[1772737325600,0.54487499,2082.4,2081.4,0.59783061]
[1772737325902,0.54487499,2082.4,2081.5,0.59783061]
[1772737326204,0.54487499,2082.2,2081.5,0.60332091]
[1772737326404,0.54487499,2082.2,2081.5,0.0054903]
[1772737326603,0.54487499,2082.0,2081.3,23.23183061]
[1772737326901,0.54487499,2082.0,2081.1,0.59783061]
[1772737327106,0.54487499,2082.0,2081.2,22.396]
[1772737327304,0.54487499,2081.8,2081.2,22.99383061]
[1772737327502,0.54487499,2082.3,2081.3,0.59783061]
[1772737327706,0.54487499,2082.1,2081.3,0.60249352]
[1772737328302,0.5491265,2082.4,2081.4,0.59783061]
[1772737328500,0.54487499,2082.3,2081.4,0.59783061]
[1772737328899,0.54487499,2082.2,2081.4,0.59783061]
[1772737329106,5.99812438,2082.3,2081.6,0.59783061]
[1772737329306,0.21707722,2082.3,2081.7,0.59783061]
[1772737329608,5.78104716,2082.2,2081.7,0.59783061]
[1772737330006,5.78104716,2082.1,2081.7,0.59783061]
[1772737330304,0.00425151,2082.4,2081.7,0.59783061]
[1772737330701,0.21481392,2082.4,2081.8,23.23883061]
[1772737330897,0.00425151,2082.4,2081.9,0.59783061]
[1772737331104,5.78104716,2082.3,2081.9,0.59783061]
[1772737331301,0.21481392,2082.4,2081.9,0.59783061]
[1772737331502,0.00425151,2082.4,2082.0,0.59783061]
[1772737331706,0.21056241,2082.8,2081.9,22.695]
[1772737332103,0.21056241,2082.6,2082.0,0.59783061]
[1772737332509,5.99204549,2082.5,2082.0,0.59783061]
[1772737332702,0.21597072,2082.5,2082.0,0.59783061]
[1772737332897,0.21597072,2082.5,2081.6,0.59783061]
[1772737333098,0.21099833,2082.7,2082.0,0.59783061]
[1772737333503,0.21099833,2082.6,2082.0,0.59783061]
[1772737333704,0.21099833,2082.6,2081.8,0.59783061]
[1772737333904,5.99204549,2082.5,2081.8,23.38983061]
[1772737334109,0.21632819,2082.5,2081.9,0.59783061]
[1772737334609,5.98771568,2082.4,2081.9,0.59783061]
[1772737335010,5.78104716,2082.3,2081.9,23.43483061]
[1772737335307,0.00532986,2082.5,2081.8,3.65172729]
[1772737335709,0.00532986,2082.5,2081.8,26.50972729]
[1772737336211,0.00532986,2082.5,2081.8,23.4711523]
[1772737337005,0.24538986,2082.5,2081.6,0.59840596]
[1772737337210,0.24538986,2082.5,2081.7,22.901]
[1772737337408,0.24538986,2082.5,2081.7,22.909]
[1772737337608,6.15087986,2082.5,2081.4,0.59840596]
[1772737337910,6.15087986,2082.5,2081.3,0.00466291]
[1772737337911,0.24011,2082.1,2081.3,0.00466291]
[1772737338211,0.24011,2082.1,2081.3,0.60306887]
[1772737338610,0.24011,2082.1,2081.3,0.00466291]
[1772737339101,0.24011,2082.1,2081.3,0.60318665]
[1772737340403,0.24011,2082.1,2081.5,0.59852374]
[1772737340712,5.91081986,2082.5,2081.5,0.59852374]
[1772737340713,5.91081986,2082.5,2081.6,0.59924249]
[1772737340911,0.24011,2082.1,2081.8,0.59924249]
[1772737341113,5.91081986,2082.5,2081.8,0.59924249]
[1772737341507,5.90467,2082.8,2081.9,0.59924249]
[1772737341707,0.24008,2082.3,2081.9,0.59924249]
[1772737341906,5.90467,2082.8,2081.9,0.59924249]
[1772737342311,0.24003,2082.7,2081.9,0.59924249]
[1772737342512,0.24008,2082.3,2081.9,0.59924249]
[1772737343208,5.90518,2082.6,2081.9,0.59924249]
[1772737343413,0.24008,2082.3,2081.9,0.59924249]
[1772737343614,0.0046063,2082.7,2081.9,0.59924249]
[1772737344112,0.0046063,2082.7,2082.0,23.08995264]
[1772737344313,0.0046063,2082.7,2082.1,0.59995264]
[1772737345006,5.90405,2083.0,2082.2,0.6002351]
[1772737345204,0.5144044,2082.4,2081.9,0.59783061]
[1772737345404,0.24004,2082.6,2081.9,0.59783061]
[1772737345813,5.90433,2082.9,2082.2,0.5981523]
[1772737346113,5.91041675,2082.9,2082.2,0.5981523]
[1772737346509,0.00443975,2082.8,2082.2,0.5981523]
[1772737347209,0.24004,2082.6,2082.2,0.5981523]
[1772737347404,0.00443975,2082.8,2082.2,0.5981523]
[1772737347711,0.01022333,2083.0,2082.2,0.5981523]
[1772737347916,5.9352536,2083.2,2082.2,0.5981523]
[1772737348312,0.05969577,2083.1,2082.2,0.5981523]
[1772737348712,0.24005,2082.6,2082.4,0.60348094]
[1772737348914,0.04571873,2083.0,2082.4,0.60348094]
[1772737349110,0.14005997,2083.5,2082.8,0.58808286]
[1772737349415,0.38004997,2083.1,2082.7,0.58808286]
[1772737349616,0.23999,2083.1,2082.7,0.58808286]
[1772737349819,0.13270886,2083.3,2082.7,0.58808286]
[1772737350113,0.23999,2083.1,2082.7,0.59147202]
[1772737350424,0.24001,2082.9,2082.6,0.62835304]
[1772737350614,0.63200952,2083.1,2082.6,0.62835304]
[1772737350815,0.63700229,2083.3,2082.6,0.62835304]
[1772737351115,0.63200952,2083.5,2082.8,0.62835304]
[1772737351413,0.63200952,2083.5,2082.9,0.62835304]
[1772737351615,0.63200952,2083.6,2082.9,0.62835304]
[1772737351917,0.23995,2083.4,2083.1,0.62835304]
[1772737352112,0.0036745,2083.4,2083.1,0.63402675]
[1772737352309,0.23995,2083.4,2083.1,22.96602675]
[1772737352519,0.63200952,2083.6,2083.2,0.62835304]
[1772737352718,5.9014,2084.0,2083.2,0.62835304]
[1772737352719,0.63200952,2083.8,2083.2,0.62835304]
[1772737353120,5.9014,2084.0,2083.2,0.62835304]
[1772737353121,6.53340952,2084.0,2083.2,0.62835304]
[1772737353320,0.00496076,2083.8,2083.3,0.62835304]
[1772737353516,0.63200952,2083.9,2083.3,0.62835304]
[1772737353717,0.23992,2083.7,2083.4,0.62835304]
[1772737353916,0.63200952,2084.3,2083.4,0.62835304]
[1772737354114,0.63200952,2083.7,2083.1,0.00567371]
[1772737354622,0.23997,2083.2,2082.9,0.62835304]
[1772737354823,0.23997,2083.2,2082.9,22.83435304]
[1772737355019,0.23997,2083.2,2082.9,0.62835304]
[1772737355521,0.63742781,2083.7,2082.9,0.63250906]